{"text_format":"3","workbook":"xlsx","n_sheets":4,"sheets":["PRADŽIA","PROJEKTO PARAMETRAI","PROJEKTO INFORMACIJA","PROJEKTO SUMOS"],"not_rendered":{"charts":2,"defined_names":3,"pivot_tables":1},"read":"whole","date_system":"1900"}

{"sheet":"PRADŽIA","index":0,"n_rows":7,"n_cols":2,"rows_kept":7}
[null,"APIE ŠĮ ŠABLONĄ"]
[null,"Šioje renginio planavimo stebėjimo darbaknygėje sekite projekto parametrus, projekto informaciją ir projekto bendrąsias sumas."]
[null,"Įveskite informaciją apie projekto parametrų darbalapį, kad atnaujintumėte stulpelių diagramas ir projekto informacijos darbalapį. Projekto bendrųjų sumų darbalapyje automatiškai atnaujinama projekto PivotTable."]
[null,"Įveskite įmonės pavadinimą darbalapyje Parametrai ir jis bus automatiškai atnaujintas kituose darbalapiuose."]
[null,"Pastaba.  "]
[null,"Papildomos instrukcijos pateikiamos kiekvieno darbalapio A stulpelyje RENGINIO PLANAVIMO STEBĖJIMO PIREMONĖS darbaknygėje. Šis tekstas buvo specialiai paslėptas. Norėdami pašalinti tekstą, pasirinkite A stulpelį, tada pasirinkite Naikinti. Norėdami nebeslėpti teksto, pasirinkite A stulpelį, tada pakeiskite šrifto spalvą."]
[null,"Norėdami sužinoti daugiau apie darbalapio lenteles, lentelėje paspauskite SHIFT, tada – F10, pasirinkite parinktį LENTELĖ, tada pasirinkite ALTERNATYVUS TEKSTAS."]

{"sheet":"PROJEKTO PARAMETRAI","index":1,"n_rows":19,"n_cols":9,"rows_kept":19,"merged":[[23,1,42,3]]}
[null,"Įmonės pavadinimas"]
[null,"Renginio valdymo projekto stebėjimo priemonė"]
[null,{"$f":"B1&\" Konfidencialu\"","v":"Įmonės pavadinimas Konfidencialu"}]
[null,"Paryškintuose langeliuose esančios reikšmės apskaičiuojamos už jus. Jums nereikia nieko į juos įvesti."]
[null,"PROJEKTO TIPAS","PASKYROS VADOVAS","PROJEKTO VADOVAS","STRATEGIJOS VADOVAS","DIZAINO SPECIALISTĖ","RENGINIO DARBUOTOJAI","ADMINISTRACIJOS DARBUOTOJAI","Suma"]
[null,"Renginio strategijos plėtojimas",{"v":0.2,"d":"20%"},{"v":0.1,"d":"10%"},{"v":0.6,"d":"60%"},{"v":0,"d":"0%"},{"v":0,"d":"0%"},{"v":0.1,"d":"10%"},{"$f":"SUM(Parametrai[[#This Row],[PASKYROS VADOVAS]:[ADMINISTRACIJOS DARBUOTOJAI]])","v":{"v":1,"d":"100%"}}]
[null,"Renginio planavimas",{"v":0.2,"d":"20%"},{"v":0.5,"d":"50%"},{"v":0.1,"d":"10%"},{"v":0.1,"d":"10%"},{"v":0,"d":"0%"},{"v":0.1,"d":"10%"},{"$f":"SUM(Parametrai[[#This Row],[PASKYROS VADOVAS]:[ADMINISTRACIJOS DARBUOTOJAI]])","v":{"v":0.9999999999999999,"d":"100%"}}]
[null,"Renginio dizainas",{"v":0.2,"d":"20%"},{"v":0.2,"d":"20%"},{"v":0,"d":"0%"},{"v":0.5,"d":"50%"},{"v":0,"d":"0%"},{"v":0.1,"d":"10%"},{"$f":"SUM(Parametrai[[#This Row],[PASKYROS VADOVAS]:[ADMINISTRACIJOS DARBUOTOJAI]])","v":{"v":1,"d":"100%"}}]
[null,"Renginio logistika",{"v":0.2,"d":"20%"},{"v":0.6,"d":"60%"},{"v":0,"d":"0%"},{"v":0,"d":"0%"},{"v":0.1,"d":"10%"},{"v":0.1,"d":"10%"},{"$f":"SUM(Parametrai[[#This Row],[PASKYROS VADOVAS]:[ADMINISTRACIJOS DARBUOTOJAI]])","v":{"v":1,"d":"100%"}}]
[null,"Renginio darbuotojai",{"v":0.2,"d":"20%"},{"v":0.1,"d":"10%"},{"v":0,"d":"0%"},{"v":0,"d":"0%"},{"v":0.6,"d":"60%"},{"v":0.1,"d":"10%"},{"$f":"SUM(Parametrai[[#This Row],[PASKYROS VADOVAS]:[ADMINISTRACIJOS DARBUOTOJAI]])","v":{"v":1,"d":"100%"}}]
[null,"Renginio vertinimas",{"v":0.2,"d":"20%"},{"v":0.2,"d":"20%"},{"v":0.2,"d":"20%"},{"v":0.2,"d":"20%"},{"v":0,"d":"0%"},{"v":0.2,"d":"20%"},{"$f":"SUM(Parametrai[[#This Row],[PASKYROS VADOVAS]:[ADMINISTRACIJOS DARBUOTOJAI]])","v":{"v":1,"d":"100%"}}]
[null,"Mišrūs mokesčiai",{"v":180,"d":"180.00 EUR"},{"v":120,"d":"120.00 EUR"},{"v":150,"d":"150.00 EUR"},{"v":100,"d":"100.00 EUR"},{"v":80,"d":"80.00 EUR"},{"v":60,"d":"60.00 EUR"}]
[]
[{"$nulls":5},"Stulpelinė diagrama, rodanti planuojamų ir faktinių valandų palyginimą šiame langelyje."]
[null,null,"PASKYROS VADOVAS","PROJEKTO VADOVAS","STRATEGIJOS VADOVAS","DIZAINO SPECIALISTĖ","RENGINIO DARBUOTOJAI","ADMINISTRACIJOS DARBUOTOJAI"]
[null,"SUPLANUOTOS IŠLAIDOS",{"$f":"SUBTOTAL(109,ProjektoInformacija[PASKYROS VADOVAS])","v":{"v":54000,"d":"EUR 54,000.00"}},{"$f":"SUBTOTAL(109,ProjektoInformacija[PROJEKTO VADOVAS])","v":{"v":52200,"d":"EUR 52,200.00"}},{"$f":"SUBTOTAL(109,ProjektoInformacija[STRATEGIJOS VADOVAS])","v":{"v":24000,"d":"EUR 24,000.00"}},{"$f":"SUBTOTAL(109,ProjektoInformacija[DIZAINO SPECIALISTĖ])","v":{"v":29000,"d":"EUR 29,000.00"}},{"$f":"SUBTOTAL(109,ProjektoInformacija[RENGINIO DARBUOTOJAI])","v":{"v":13200,"d":"EUR 13,200.00"}},{"$f":"SUBTOTAL(109,ProjektoInformacija[ADMINISTRACIJOS DARBUOTOJAI])","v":{"v":9000,"d":"EUR 9,000.00"}}]
[null,"FAKTINĖS IŠLAIDOS",{"$f":"SUBTOTAL(109,ProjektoInformacija[[PASKYROS VADOVAS ]])","v":{"v":54360,"d":"EUR 54,360.00"}},{"$f":"SUBTOTAL(109,ProjektoInformacija[[PROJEKTO VADOVAS ]])","v":{"v":51540,"d":"EUR 51,540.00"}},{"$f":"SUBTOTAL(109,ProjektoInformacija[[STRATEGIJOS VADOVAS ]])","v":{"v":25650,"d":"EUR 25,650.00"}},{"$f":"SUBTOTAL(109,ProjektoInformacija[[DIZAINO SPECIALISTĖ ]])","v":{"v":28900,"d":"EUR 28,900.00"}},{"$f":"SUBTOTAL(109,ProjektoInformacija[[RENGINIO DARBUOTOJAI ]])","v":{"v":13400,"d":"EUR 13,400.00"}},{"$f":"SUBTOTAL(109,ProjektoInformacija[[ADMINISTRACIJOS DARBUOTOJAI ]])","v":{"v":9060,"d":"EUR 9,060.00"}}]
[null,"SUPLANUOTOS VALANDOS",{"$f":"C16/$C$12","v":{"v":300,"d":"300.00"}},{"$f":"D16/$C$12","v":{"v":290,"d":"290.00"}},{"v":133.33333333333334,"d":"133.33"},{"v":161.11111111111111,"d":"161.11"},{"v":73.33333333333333,"d":"73.33"},{"v":50,"d":"50.00"}]
[null,"FAKTINĖS VALANDOS",{"$f":"C17/$C$12","v":{"v":302,"d":"302.00"}},{"$f":"D17/$C$12","v":{"v":286.3333333333333,"d":"286.33"}},{"$f":"E17/$C$12","v":{"v":142.5,"d":"142.50"}},{"$f":"F17/$C$12","v":{"v":160.55555555555554,"d":"160.56"}},{"$f":"G17/$C$12","v":{"v":74.44444444444444,"d":"74.44"}},{"$f":"H17/$C$12","v":{"v":50.333333333333336,"d":"50.33"}}]

{"sheet":"PROJEKTO INFORMACIJA","index":2,"n_rows":10,"n_cols":23,"rows_kept":10}
[null,{"$f":"'PROJEKTO PARAMETRAI'!B1","v":"Įmonės pavadinimas"}]
[null,"Renginio valdymo projekto stebėjimo priemonė"]
[null,{"$f":"'PROJEKTO PARAMETRAI'!B3","v":"Įmonės pavadinimas Konfidencialu"}]
["Įveskite informaciją lentelėje Projekto informacija nuo langelio dešinėje.\nINFORMACIJA\nNorėdami įtraukti eilutę lentelėje dešinėje, pasirinkite apatiniame dešiniajame kampe esantį langelį (ne sumos eilutę) ir paspauskite Tab arba paspauskite SHIFT + F10 ten, kur norite įterpti eilutę, tada spustelėkite Įterpti | Lentelės eilutės aukščiau/žemiau.\nĮsitikinkite, kad panaikintos visos nenaudojamas eilutės, nes PROJEKTO SUMŲ PivotTable naudos visus lentelės langelius, nes kitu atveju bus pateikti klaidingi rezultatai.","PROJEKTO PAVADINIMAS","PROJEKTO TIPAS","NUMATOMA PRADŽIA","NUMATOMA PABAIGA","FAKTINĖ PRADŽIA","FAKTINĖ PABAIGA","NUMATYTOS DARBO VALANDOS","FAKTINĖS DARBO VALANDOS","NUMATOMA TRUKMĖ","FAKTINĖ TRUKMĖ","PASKYROS VADOVAS","PROJEKTO VADOVAS","STRATEGIJOS VADOVAS","DIZAINO SPECIALISTĖ","RENGINIO DARBUOTOJAI","ADMINISTRACIJOS DARBUOTOJAI","PASKYROS VADOVAS ","PROJEKTO VADOVAS ","STRATEGIJOS VADOVAS ","DIZAINO SPECIALISTĖ ","RENGINIO DARBUOTOJAI ","ADMINISTRACIJOS DARBUOTOJAI "]
[null,"1 projektas","Renginio strategijos plėtojimas",{"$f":"DATE(YEAR(TODAY()),6,9)","v":"2022-06-09"},{"$f":" DATE(YEAR(TODAY()),8,7)","v":"2022-08-07"},{"$f":"DATE(YEAR(TODAY()),6,29)","v":"2022-06-29"},{"$f":"DATE(YEAR(TODAY()),9,3)","v":"2022-09-03"},200,220,{"$f":"DAYS360(ProjektoInformacija[[#This Row],[NUMATOMA PRADŽIA]],ProjektoInformacija[[#This Row],[NUMATOMA PABAIGA]],FALSE)","v":58},{"$f":"DAYS360(ProjektoInformacija[[#This Row],[FAKTINĖ PRADŽIA]],ProjektoInformacija[[#This Row],[FAKTINĖ PABAIGA]],FALSE)","v":64},{"$f":"INDEX(Parametrai[],MATCH(ProjektoInformacija[[#This Row],[PROJEKTO TIPAS]],Parametrai[PROJEKTO TIPAS],0),MATCH(ProjektoInformacija[[#Headers],[PASKYROS VADOVAS]],Parametrai[#Headers],0))*INDEX('PROJEKTO PARAMETRAI'!$B$12:$H$12,1,MATCH(ProjektoInformacija[[#Headers],[PASKYROS VADOVAS]],Parametrai[#Headers],0))*ProjektoInformacija[[#This Row],[NUMATYTOS DARBO VALANDOS]]","v":{"v":7200,"d":"7,200 EUR"}},{"$f":"INDEX(Parametrai[],MATCH(ProjektoInformacija[[#This Row],[PROJEKTO TIPAS]],Parametrai[PROJEKTO TIPAS],0),MATCH(ProjektoInformacija[[#Headers],[PROJEKTO VADOVAS]],Parametrai[#Headers],0))*INDEX('PROJEKTO PARAMETRAI'!$B$12:$H$12,1,MATCH(ProjektoInformacija[[#Headers],[PROJEKTO VADOVAS]],Parametrai[#Headers],0))*ProjektoInformacija[[#This Row],[NUMATYTOS DARBO VALANDOS]]","v":{"v":2400,"d":"2,400 EUR"}},{"$f":"INDEX(Parametrai[],MATCH(ProjektoInformacija[[#This Row],[PROJEKTO TIPAS]],Parametrai[PROJEKTO TIPAS],0),MATCH(ProjektoInformacija[[#Headers],[STRATEGIJOS VADOVAS]],Parametrai[#Headers],0))*INDEX('PROJEKTO PARAMETRAI'!$B$12:$H$12,1,MATCH(ProjektoInformacija[[#Headers],[STRATEGIJOS VADOVAS]],Parametrai[#Headers],0))*ProjektoInformacija[[#This Row],[NUMATYTOS DARBO VALANDOS]]","v":{"v":18000,"d":"18,000 EUR"}},{"$f":"INDEX(Parametrai[],MATCH(ProjektoInformacija[[#This Row],[PROJEKTO TIPAS]],Parametrai[PROJEKTO TIPAS],0),MATCH(ProjektoInformacija[[#Headers],[DIZAINO SPECIALISTĖ]],Parametrai[#Headers],0))*INDEX('PROJEKTO PARAMETRAI'!$B$12:$H$12,1,MATCH(ProjektoInformacija[[#Headers],[DIZAINO SPECIALISTĖ]],Parametrai[#Headers],0))*ProjektoInformacija[[#This Row],[NUMATYTOS DARBO VALANDOS]]","v":{"v":0,"d":"0 EUR"}},{"$f":"INDEX(Parametrai[],MATCH(ProjektoInformacija[[#This Row],[PROJEKTO TIPAS]],Parametrai[PROJEKTO TIPAS],0),MATCH(ProjektoInformacija[[#Headers],[RENGINIO DARBUOTOJAI]],Parametrai[#Headers],0))*INDEX('PROJEKTO PARAMETRAI'!$B$12:$H$12,1,MATCH(ProjektoInformacija[[#Headers],[RENGINIO DARBUOTOJAI]],Parametrai[#Headers],0))*ProjektoInformacija[[#This Row],[NUMATYTOS DARBO VALANDOS]]","v":{"v":0,"d":"0 EUR"}},{"$f":"INDEX(Parametrai[],MATCH(ProjektoInformacija[[#This Row],[PROJEKTO TIPAS]],Parametrai[PROJEKTO TIPAS],0),MATCH(ProjektoInformacija[[#Headers],[ADMINISTRACIJOS DARBUOTOJAI]],Parametrai[#Headers],0))*INDEX('PROJEKTO PARAMETRAI'!$B$12:$H$12,1,MATCH(ProjektoInformacija[[#Headers],[ADMINISTRACIJOS DARBUOTOJAI]],Parametrai[#Headers],0))*ProjektoInformacija[[#This Row],[NUMATYTOS DARBO VALANDOS]]","v":{"v":1200,"d":"1,200 EUR"}},{"$f":"INDEX(Parametrai[],MATCH(ProjektoInformacija[[#This Row],[PROJEKTO TIPAS]],Parametrai[PROJEKTO TIPAS],0),MATCH(ProjektoInformacija[[#Headers],[PASKYROS VADOVAS]],Parametrai[#Headers],0))*INDEX('PROJEKTO PARAMETRAI'!$B$12:$H$12,1,MATCH(ProjektoInformacija[[#Headers],[PASKYROS VADOVAS]],Parametrai[#Headers],0))*ProjektoInformacija[[#This Row],[FAKTINĖS DARBO VALANDOS]]","v":{"v":7920,"d":"7,920 EUR"}},{"$f":"INDEX(Parametrai[],MATCH(ProjektoInformacija[[#This Row],[PROJEKTO TIPAS]],Parametrai[PROJEKTO TIPAS],0),MATCH(ProjektoInformacija[[#Headers],[PROJEKTO VADOVAS]],Parametrai[#Headers],0))*INDEX('PROJEKTO PARAMETRAI'!$B$12:$H$12,1,MATCH(ProjektoInformacija[[#Headers],[PROJEKTO VADOVAS]],Parametrai[#Headers],0))*ProjektoInformacija[[#This Row],[FAKTINĖS DARBO VALANDOS]]","v":{"v":2640,"d":"2,640 EUR"}},{"$f":"INDEX(Parametrai[],MATCH(ProjektoInformacija[[#This Row],[PROJEKTO TIPAS]],Parametrai[PROJEKTO TIPAS],0),MATCH(ProjektoInformacija[[#Headers],[STRATEGIJOS VADOVAS]],Parametrai[#Headers],0))*INDEX('PROJEKTO PARAMETRAI'!$B$12:$H$12,1,MATCH(ProjektoInformacija[[#Headers],[STRATEGIJOS VADOVAS]],Parametrai[#Headers],0))*ProjektoInformacija[[#This Row],[FAKTINĖS DARBO VALANDOS]]","v":{"v":19800,"d":"19,800 EUR"}},{"$f":"INDEX(Parametrai[],MATCH(ProjektoInformacija[[#This Row],[PROJEKTO TIPAS]],Parametrai[PROJEKTO TIPAS],0),MATCH(ProjektoInformacija[[#Headers],[DIZAINO SPECIALISTĖ]],Parametrai[#Headers],0))*INDEX('PROJEKTO PARAMETRAI'!$B$12:$H$12,1,MATCH(ProjektoInformacija[[#Headers],[DIZAINO SPECIALISTĖ]],Parametrai[#Headers],0))*ProjektoInformacija[[#This Row],[FAKTINĖS DARBO VALANDOS]]","v":{"v":0,"d":"0 EUR"}},{"$f":"INDEX(Parametrai[],MATCH(ProjektoInformacija[[#This Row],[PROJEKTO TIPAS]],Parametrai[PROJEKTO TIPAS],0),MATCH(ProjektoInformacija[[#Headers],[RENGINIO DARBUOTOJAI]],Parametrai[#Headers],0))*INDEX('PROJEKTO PARAMETRAI'!$B$12:$H$12,1,MATCH(ProjektoInformacija[[#Headers],[RENGINIO DARBUOTOJAI]],Parametrai[#Headers],0))*ProjektoInformacija[[#This Row],[FAKTINĖS DARBO VALANDOS]]","v":{"v":0,"d":"0 EUR"}},{"$f":"INDEX(Parametrai[],MATCH(ProjektoInformacija[[#This Row],[PROJEKTO TIPAS]],Parametrai[PROJEKTO TIPAS],0),MATCH(ProjektoInformacija[[#Headers],[ADMINISTRACIJOS DARBUOTOJAI]],Parametrai[#Headers],0))*INDEX('PROJEKTO PARAMETRAI'!$B$12:$H$12,1,MATCH(ProjektoInformacija[[#Headers],[ADMINISTRACIJOS DARBUOTOJAI]],Parametrai[#Headers],0))*ProjektoInformacija[[#This Row],[FAKTINĖS DARBO VALANDOS]]","v":{"v":1320,"d":"1,320 EUR"}}]
[null,"2 projektas","Renginio planavimas",{"$f":"DATE(YEAR(TODAY())+1,6,25)","v":"2023-06-25"},{"$f":"DATE(YEAR(TODAY())+1,7,27)","v":"2023-07-27"},{"$f":"DATE(YEAR(TODAY()),7,15)","v":"2022-07-15"},{"$f":"DATE(YEAR(TODAY())+1,8,25)","v":"2023-08-25"},400,390,{"$f":"DAYS360(ProjektoInformacija[[#This Row],[NUMATOMA PRADŽIA]],ProjektoInformacija[[#This Row],[NUMATOMA PABAIGA]],FALSE)","v":32},{"$f":"DAYS360(ProjektoInformacija[[#This Row],[FAKTINĖ PRADŽIA]],ProjektoInformacija[[#This Row],[FAKTINĖ PABAIGA]],FALSE)","v":400},{"$f":"INDEX(Parametrai[],MATCH(ProjektoInformacija[[#This Row],[PROJEKTO TIPAS]],Parametrai[PROJEKTO TIPAS],0),MATCH(ProjektoInformacija[[#Headers],[PASKYROS VADOVAS]],Parametrai[#Headers],0))*INDEX('PROJEKTO PARAMETRAI'!$B$12:$H$12,1,MATCH(ProjektoInformacija[[#Headers],[PASKYROS VADOVAS]],Parametrai[#Headers],0))*ProjektoInformacija[[#This Row],[NUMATYTOS DARBO VALANDOS]]","v":{"v":14400,"d":"14,400 EUR"}},{"$f":"INDEX(Parametrai[],MATCH(ProjektoInformacija[[#This Row],[PROJEKTO TIPAS]],Parametrai[PROJEKTO TIPAS],0),MATCH(ProjektoInformacija[[#Headers],[PROJEKTO VADOVAS]],Parametrai[#Headers],0))*INDEX('PROJEKTO PARAMETRAI'!$B$12:$H$12,1,MATCH(ProjektoInformacija[[#Headers],[PROJEKTO VADOVAS]],Parametrai[#Headers],0))*ProjektoInformacija[[#This Row],[NUMATYTOS DARBO VALANDOS]]","v":{"v":24000,"d":"24,000 EUR"}},{"$f":"INDEX(Parametrai[],MATCH(ProjektoInformacija[[#This Row],[PROJEKTO TIPAS]],Parametrai[PROJEKTO TIPAS],0),MATCH(ProjektoInformacija[[#Headers],[STRATEGIJOS VADOVAS]],Parametrai[#Headers],0))*INDEX('PROJEKTO PARAMETRAI'!$B$12:$H$12,1,MATCH(ProjektoInformacija[[#Headers],[STRATEGIJOS VADOVAS]],Parametrai[#Headers],0))*ProjektoInformacija[[#This Row],[NUMATYTOS DARBO VALANDOS]]","v":{"v":6000,"d":"6,000 EUR"}},{"$f":"INDEX(Parametrai[],MATCH(ProjektoInformacija[[#This Row],[PROJEKTO TIPAS]],Parametrai[PROJEKTO TIPAS],0),MATCH(ProjektoInformacija[[#Headers],[DIZAINO SPECIALISTĖ]],Parametrai[#Headers],0))*INDEX('PROJEKTO PARAMETRAI'!$B$12:$H$12,1,MATCH(ProjektoInformacija[[#Headers],[DIZAINO SPECIALISTĖ]],Parametrai[#Headers],0))*ProjektoInformacija[[#This Row],[NUMATYTOS DARBO VALANDOS]]","v":{"v":4000,"d":"4,000 EUR"}},{"$f":"INDEX(Parametrai[],MATCH(ProjektoInformacija[[#This Row],[PROJEKTO TIPAS]],Parametrai[PROJEKTO TIPAS],0),MATCH(ProjektoInformacija[[#Headers],[RENGINIO DARBUOTOJAI]],Parametrai[#Headers],0))*INDEX('PROJEKTO PARAMETRAI'!$B$12:$H$12,1,MATCH(ProjektoInformacija[[#Headers],[RENGINIO DARBUOTOJAI]],Parametrai[#Headers],0))*ProjektoInformacija[[#This Row],[NUMATYTOS DARBO VALANDOS]]","v":{"v":0,"d":"0 EUR"}},{"$f":"INDEX(Parametrai[],MATCH(ProjektoInformacija[[#This Row],[PROJEKTO TIPAS]],Parametrai[PROJEKTO TIPAS],0),MATCH(ProjektoInformacija[[#Headers],[ADMINISTRACIJOS DARBUOTOJAI]],Parametrai[#Headers],0))*INDEX('PROJEKTO PARAMETRAI'!$B$12:$H$12,1,MATCH(ProjektoInformacija[[#Headers],[ADMINISTRACIJOS DARBUOTOJAI]],Parametrai[#Headers],0))*ProjektoInformacija[[#This Row],[NUMATYTOS DARBO VALANDOS]]","v":{"v":2400,"d":"2,400 EUR"}},{"$f":"INDEX(Parametrai[],MATCH(ProjektoInformacija[[#This Row],[PROJEKTO TIPAS]],Parametrai[PROJEKTO TIPAS],0),MATCH(ProjektoInformacija[[#Headers],[PASKYROS VADOVAS]],Parametrai[#Headers],0))*INDEX('PROJEKTO PARAMETRAI'!$B$12:$H$12,1,MATCH(ProjektoInformacija[[#Headers],[PASKYROS VADOVAS]],Parametrai[#Headers],0))*ProjektoInformacija[[#This Row],[FAKTINĖS DARBO VALANDOS]]","v":{"v":14040,"d":"14,040 EUR"}},{"$f":"INDEX(Parametrai[],MATCH(ProjektoInformacija[[#This Row],[PROJEKTO TIPAS]],Parametrai[PROJEKTO TIPAS],0),MATCH(ProjektoInformacija[[#Headers],[PROJEKTO VADOVAS]],Parametrai[#Headers],0))*INDEX('PROJEKTO PARAMETRAI'!$B$12:$H$12,1,MATCH(ProjektoInformacija[[#Headers],[PROJEKTO VADOVAS]],Parametrai[#Headers],0))*ProjektoInformacija[[#This Row],[FAKTINĖS DARBO VALANDOS]]","v":{"v":23400,"d":"23,400 EUR"}},{"$f":"INDEX(Parametrai[],MATCH(ProjektoInformacija[[#This Row],[PROJEKTO TIPAS]],Parametrai[PROJEKTO TIPAS],0),MATCH(ProjektoInformacija[[#Headers],[STRATEGIJOS VADOVAS]],Parametrai[#Headers],0))*INDEX('PROJEKTO PARAMETRAI'!$B$12:$H$12,1,MATCH(ProjektoInformacija[[#Headers],[STRATEGIJOS VADOVAS]],Parametrai[#Headers],0))*ProjektoInformacija[[#This Row],[FAKTINĖS DARBO VALANDOS]]","v":{"v":5850,"d":"5,850 EUR"}},{"$f":"INDEX(Parametrai[],MATCH(ProjektoInformacija[[#This Row],[PROJEKTO TIPAS]],Parametrai[PROJEKTO TIPAS],0),MATCH(ProjektoInformacija[[#Headers],[DIZAINO SPECIALISTĖ]],Parametrai[#Headers],0))*INDEX('PROJEKTO PARAMETRAI'!$B$12:$H$12,1,MATCH(ProjektoInformacija[[#Headers],[DIZAINO SPECIALISTĖ]],Parametrai[#Headers],0))*ProjektoInformacija[[#This Row],[FAKTINĖS DARBO VALANDOS]]","v":{"v":3900,"d":"3,900 EUR"}},{"$f":"INDEX(Parametrai[],MATCH(ProjektoInformacija[[#This Row],[PROJEKTO TIPAS]],Parametrai[PROJEKTO TIPAS],0),MATCH(ProjektoInformacija[[#Headers],[RENGINIO DARBUOTOJAI]],Parametrai[#Headers],0))*INDEX('PROJEKTO PARAMETRAI'!$B$12:$H$12,1,MATCH(ProjektoInformacija[[#Headers],[RENGINIO DARBUOTOJAI]],Parametrai[#Headers],0))*ProjektoInformacija[[#This Row],[FAKTINĖS DARBO VALANDOS]]","v":{"v":0,"d":"0 EUR"}},{"$f":"INDEX(Parametrai[],MATCH(ProjektoInformacija[[#This Row],[PROJEKTO TIPAS]],Parametrai[PROJEKTO TIPAS],0),MATCH(ProjektoInformacija[[#Headers],[ADMINISTRACIJOS DARBUOTOJAI]],Parametrai[#Headers],0))*INDEX('PROJEKTO PARAMETRAI'!$B$12:$H$12,1,MATCH(ProjektoInformacija[[#Headers],[ADMINISTRACIJOS DARBUOTOJAI]],Parametrai[#Headers],0))*ProjektoInformacija[[#This Row],[FAKTINĖS DARBO VALANDOS]]","v":{"v":2340,"d":"2,340 EUR"}}]
[null,"3 projektas","Renginio dizainas",{"$f":"DATE(YEAR(TODAY())+2,7,12)","v":"2024-07-12"},{"$f":"DATE(YEAR(TODAY())+2,9,19)","v":"2024-09-19"},"2025-08-07","2025-10-10",500,500,{"$f":"DAYS360(ProjektoInformacija[[#This Row],[NUMATOMA PRADŽIA]],ProjektoInformacija[[#This Row],[NUMATOMA PABAIGA]],FALSE)","v":67},{"$f":"DAYS360(ProjektoInformacija[[#This Row],[FAKTINĖ PRADŽIA]],ProjektoInformacija[[#This Row],[FAKTINĖ PABAIGA]],FALSE)","v":63},{"$f":"INDEX(Parametrai[],MATCH(ProjektoInformacija[[#This Row],[PROJEKTO TIPAS]],Parametrai[PROJEKTO TIPAS],0),MATCH(ProjektoInformacija[[#Headers],[PASKYROS VADOVAS]],Parametrai[#Headers],0))*INDEX('PROJEKTO PARAMETRAI'!$B$12:$H$12,1,MATCH(ProjektoInformacija[[#Headers],[PASKYROS VADOVAS]],Parametrai[#Headers],0))*ProjektoInformacija[[#This Row],[NUMATYTOS DARBO VALANDOS]]","v":{"v":18000,"d":"18,000 EUR"}},{"$f":"INDEX(Parametrai[],MATCH(ProjektoInformacija[[#This Row],[PROJEKTO TIPAS]],Parametrai[PROJEKTO TIPAS],0),MATCH(ProjektoInformacija[[#Headers],[PROJEKTO VADOVAS]],Parametrai[#Headers],0))*INDEX('PROJEKTO PARAMETRAI'!$B$12:$H$12,1,MATCH(ProjektoInformacija[[#Headers],[PROJEKTO VADOVAS]],Parametrai[#Headers],0))*ProjektoInformacija[[#This Row],[NUMATYTOS DARBO VALANDOS]]","v":{"v":12000,"d":"12,000 EUR"}},{"$f":"INDEX(Parametrai[],MATCH(ProjektoInformacija[[#This Row],[PROJEKTO TIPAS]],Parametrai[PROJEKTO TIPAS],0),MATCH(ProjektoInformacija[[#Headers],[STRATEGIJOS VADOVAS]],Parametrai[#Headers],0))*INDEX('PROJEKTO PARAMETRAI'!$B$12:$H$12,1,MATCH(ProjektoInformacija[[#Headers],[STRATEGIJOS VADOVAS]],Parametrai[#Headers],0))*ProjektoInformacija[[#This Row],[NUMATYTOS DARBO VALANDOS]]","v":{"v":0,"d":"0 EUR"}},{"$f":"INDEX(Parametrai[],MATCH(ProjektoInformacija[[#This Row],[PROJEKTO TIPAS]],Parametrai[PROJEKTO TIPAS],0),MATCH(ProjektoInformacija[[#Headers],[DIZAINO SPECIALISTĖ]],Parametrai[#Headers],0))*INDEX('PROJEKTO PARAMETRAI'!$B$12:$H$12,1,MATCH(ProjektoInformacija[[#Headers],[DIZAINO SPECIALISTĖ]],Parametrai[#Headers],0))*ProjektoInformacija[[#This Row],[NUMATYTOS DARBO VALANDOS]]","v":{"v":25000,"d":"25,000 EUR"}},{"$f":"INDEX(Parametrai[],MATCH(ProjektoInformacija[[#This Row],[PROJEKTO TIPAS]],Parametrai[PROJEKTO TIPAS],0),MATCH(ProjektoInformacija[[#Headers],[RENGINIO DARBUOTOJAI]],Parametrai[#Headers],0))*INDEX('PROJEKTO PARAMETRAI'!$B$12:$H$12,1,MATCH(ProjektoInformacija[[#Headers],[RENGINIO DARBUOTOJAI]],Parametrai[#Headers],0))*ProjektoInformacija[[#This Row],[NUMATYTOS DARBO VALANDOS]]","v":{"v":0,"d":"0 EUR"}},{"$f":"INDEX(Parametrai[],MATCH(ProjektoInformacija[[#This Row],[PROJEKTO TIPAS]],Parametrai[PROJEKTO TIPAS],0),MATCH(ProjektoInformacija[[#Headers],[ADMINISTRACIJOS DARBUOTOJAI]],Parametrai[#Headers],0))*INDEX('PROJEKTO PARAMETRAI'!$B$12:$H$12,1,MATCH(ProjektoInformacija[[#Headers],[ADMINISTRACIJOS DARBUOTOJAI]],Parametrai[#Headers],0))*ProjektoInformacija[[#This Row],[NUMATYTOS DARBO VALANDOS]]","v":{"v":3000,"d":"3,000 EUR"}},{"$f":"INDEX(Parametrai[],MATCH(ProjektoInformacija[[#This Row],[PROJEKTO TIPAS]],Parametrai[PROJEKTO TIPAS],0),MATCH(ProjektoInformacija[[#Headers],[PASKYROS VADOVAS]],Parametrai[#Headers],0))*INDEX('PROJEKTO PARAMETRAI'!$B$12:$H$12,1,MATCH(ProjektoInformacija[[#Headers],[PASKYROS VADOVAS]],Parametrai[#Headers],0))*ProjektoInformacija[[#This Row],[FAKTINĖS DARBO VALANDOS]]","v":{"v":18000,"d":"18,000 EUR"}},{"$f":"INDEX(Parametrai[],MATCH(ProjektoInformacija[[#This Row],[PROJEKTO TIPAS]],Parametrai[PROJEKTO TIPAS],0),MATCH(ProjektoInformacija[[#Headers],[PROJEKTO VADOVAS]],Parametrai[#Headers],0))*INDEX('PROJEKTO PARAMETRAI'!$B$12:$H$12,1,MATCH(ProjektoInformacija[[#Headers],[PROJEKTO VADOVAS]],Parametrai[#Headers],0))*ProjektoInformacija[[#This Row],[FAKTINĖS DARBO VALANDOS]]","v":{"v":12000,"d":"12,000 EUR"}},{"$f":"INDEX(Parametrai[],MATCH(ProjektoInformacija[[#This Row],[PROJEKTO TIPAS]],Parametrai[PROJEKTO TIPAS],0),MATCH(ProjektoInformacija[[#Headers],[STRATEGIJOS VADOVAS]],Parametrai[#Headers],0))*INDEX('PROJEKTO PARAMETRAI'!$B$12:$H$12,1,MATCH(ProjektoInformacija[[#Headers],[STRATEGIJOS VADOVAS]],Parametrai[#Headers],0))*ProjektoInformacija[[#This Row],[FAKTINĖS DARBO VALANDOS]]","v":{"v":0,"d":"0 EUR"}},{"$f":"INDEX(Parametrai[],MATCH(ProjektoInformacija[[#This Row],[PROJEKTO TIPAS]],Parametrai[PROJEKTO TIPAS],0),MATCH(ProjektoInformacija[[#Headers],[DIZAINO SPECIALISTĖ]],Parametrai[#Headers],0))*INDEX('PROJEKTO PARAMETRAI'!$B$12:$H$12,1,MATCH(ProjektoInformacija[[#Headers],[DIZAINO SPECIALISTĖ]],Parametrai[#Headers],0))*ProjektoInformacija[[#This Row],[FAKTINĖS DARBO VALANDOS]]","v":{"v":25000,"d":"25,000 EUR"}},{"$f":"INDEX(Parametrai[],MATCH(ProjektoInformacija[[#This Row],[PROJEKTO TIPAS]],Parametrai[PROJEKTO TIPAS],0),MATCH(ProjektoInformacija[[#Headers],[RENGINIO DARBUOTOJAI]],Parametrai[#Headers],0))*INDEX('PROJEKTO PARAMETRAI'!$B$12:$H$12,1,MATCH(ProjektoInformacija[[#Headers],[RENGINIO DARBUOTOJAI]],Parametrai[#Headers],0))*ProjektoInformacija[[#This Row],[FAKTINĖS DARBO VALANDOS]]","v":{"v":0,"d":"0 EUR"}},{"$f":"INDEX(Parametrai[],MATCH(ProjektoInformacija[[#This Row],[PROJEKTO TIPAS]],Parametrai[PROJEKTO TIPAS],0),MATCH(ProjektoInformacija[[#Headers],[ADMINISTRACIJOS DARBUOTOJAI]],Parametrai[#Headers],0))*INDEX('PROJEKTO PARAMETRAI'!$B$12:$H$12,1,MATCH(ProjektoInformacija[[#Headers],[ADMINISTRACIJOS DARBUOTOJAI]],Parametrai[#Headers],0))*ProjektoInformacija[[#This Row],[FAKTINĖS DARBO VALANDOS]]","v":{"v":3000,"d":"3,000 EUR"}}]
[null,"4 projektas","Renginio logistika",{"$f":"DATE(YEAR(TODAY())+3,7,30)","v":"2025-07-30"},{"$f":"DATE(YEAR(TODAY())+3,9,28)","v":"2025-09-28"},{"$f":"DATE(YEAR(TODAY())+3,9,14)","v":"2025-09-14"},{"$f":"DATE(YEAR(TODAY())+3,11,13)","v":"2025-11-13"},150,145,{"$f":"DAYS360(ProjektoInformacija[[#This Row],[NUMATOMA PRADŽIA]],ProjektoInformacija[[#This Row],[NUMATOMA PABAIGA]],FALSE)","v":58},{"$f":"DAYS360(ProjektoInformacija[[#This Row],[FAKTINĖ PRADŽIA]],ProjektoInformacija[[#This Row],[FAKTINĖ PABAIGA]],FALSE)","v":59},{"$f":"INDEX(Parametrai[],MATCH(ProjektoInformacija[[#This Row],[PROJEKTO TIPAS]],Parametrai[PROJEKTO TIPAS],0),MATCH(ProjektoInformacija[[#Headers],[PASKYROS VADOVAS]],Parametrai[#Headers],0))*INDEX('PROJEKTO PARAMETRAI'!$B$12:$H$12,1,MATCH(ProjektoInformacija[[#Headers],[PASKYROS VADOVAS]],Parametrai[#Headers],0))*ProjektoInformacija[[#This Row],[NUMATYTOS DARBO VALANDOS]]","v":{"v":5400,"d":"5,400 EUR"}},{"$f":"INDEX(Parametrai[],MATCH(ProjektoInformacija[[#This Row],[PROJEKTO TIPAS]],Parametrai[PROJEKTO TIPAS],0),MATCH(ProjektoInformacija[[#Headers],[PROJEKTO VADOVAS]],Parametrai[#Headers],0))*INDEX('PROJEKTO PARAMETRAI'!$B$12:$H$12,1,MATCH(ProjektoInformacija[[#Headers],[PROJEKTO VADOVAS]],Parametrai[#Headers],0))*ProjektoInformacija[[#This Row],[NUMATYTOS DARBO VALANDOS]]","v":{"v":10800,"d":"10,800 EUR"}},{"$f":"INDEX(Parametrai[],MATCH(ProjektoInformacija[[#This Row],[PROJEKTO TIPAS]],Parametrai[PROJEKTO TIPAS],0),MATCH(ProjektoInformacija[[#Headers],[STRATEGIJOS VADOVAS]],Parametrai[#Headers],0))*INDEX('PROJEKTO PARAMETRAI'!$B$12:$H$12,1,MATCH(ProjektoInformacija[[#Headers],[STRATEGIJOS VADOVAS]],Parametrai[#Headers],0))*ProjektoInformacija[[#This Row],[NUMATYTOS DARBO VALANDOS]]","v":{"v":0,"d":"0 EUR"}},{"$f":"INDEX(Parametrai[],MATCH(ProjektoInformacija[[#This Row],[PROJEKTO TIPAS]],Parametrai[PROJEKTO TIPAS],0),MATCH(ProjektoInformacija[[#Headers],[DIZAINO SPECIALISTĖ]],Parametrai[#Headers],0))*INDEX('PROJEKTO PARAMETRAI'!$B$12:$H$12,1,MATCH(ProjektoInformacija[[#Headers],[DIZAINO SPECIALISTĖ]],Parametrai[#Headers],0))*ProjektoInformacija[[#This Row],[NUMATYTOS DARBO VALANDOS]]","v":{"v":0,"d":"0 EUR"}},{"$f":"INDEX(Parametrai[],MATCH(ProjektoInformacija[[#This Row],[PROJEKTO TIPAS]],Parametrai[PROJEKTO TIPAS],0),MATCH(ProjektoInformacija[[#Headers],[RENGINIO DARBUOTOJAI]],Parametrai[#Headers],0))*INDEX('PROJEKTO PARAMETRAI'!$B$12:$H$12,1,MATCH(ProjektoInformacija[[#Headers],[RENGINIO DARBUOTOJAI]],Parametrai[#Headers],0))*ProjektoInformacija[[#This Row],[NUMATYTOS DARBO VALANDOS]]","v":{"v":1200,"d":"1,200 EUR"}},{"$f":"INDEX(Parametrai[],MATCH(ProjektoInformacija[[#This Row],[PROJEKTO TIPAS]],Parametrai[PROJEKTO TIPAS],0),MATCH(ProjektoInformacija[[#Headers],[ADMINISTRACIJOS DARBUOTOJAI]],Parametrai[#Headers],0))*INDEX('PROJEKTO PARAMETRAI'!$B$12:$H$12,1,MATCH(ProjektoInformacija[[#Headers],[ADMINISTRACIJOS DARBUOTOJAI]],Parametrai[#Headers],0))*ProjektoInformacija[[#This Row],[NUMATYTOS DARBO VALANDOS]]","v":{"v":900,"d":"900 EUR"}},{"$f":"INDEX(Parametrai[],MATCH(ProjektoInformacija[[#This Row],[PROJEKTO TIPAS]],Parametrai[PROJEKTO TIPAS],0),MATCH(ProjektoInformacija[[#Headers],[PASKYROS VADOVAS]],Parametrai[#Headers],0))*INDEX('PROJEKTO PARAMETRAI'!$B$12:$H$12,1,MATCH(ProjektoInformacija[[#Headers],[PASKYROS VADOVAS]],Parametrai[#Headers],0))*ProjektoInformacija[[#This Row],[FAKTINĖS DARBO VALANDOS]]","v":{"v":5220,"d":"5,220 EUR"}},{"$f":"INDEX(Parametrai[],MATCH(ProjektoInformacija[[#This Row],[PROJEKTO TIPAS]],Parametrai[PROJEKTO TIPAS],0),MATCH(ProjektoInformacija[[#Headers],[PROJEKTO VADOVAS]],Parametrai[#Headers],0))*INDEX('PROJEKTO PARAMETRAI'!$B$12:$H$12,1,MATCH(ProjektoInformacija[[#Headers],[PROJEKTO VADOVAS]],Parametrai[#Headers],0))*ProjektoInformacija[[#This Row],[FAKTINĖS DARBO VALANDOS]]","v":{"v":10440,"d":"10,440 EUR"}},{"$f":"INDEX(Parametrai[],MATCH(ProjektoInformacija[[#This Row],[PROJEKTO TIPAS]],Parametrai[PROJEKTO TIPAS],0),MATCH(ProjektoInformacija[[#Headers],[STRATEGIJOS VADOVAS]],Parametrai[#Headers],0))*INDEX('PROJEKTO PARAMETRAI'!$B$12:$H$12,1,MATCH(ProjektoInformacija[[#Headers],[STRATEGIJOS VADOVAS]],Parametrai[#Headers],0))*ProjektoInformacija[[#This Row],[FAKTINĖS DARBO VALANDOS]]","v":{"v":0,"d":"0 EUR"}},{"$f":"INDEX(Parametrai[],MATCH(ProjektoInformacija[[#This Row],[PROJEKTO TIPAS]],Parametrai[PROJEKTO TIPAS],0),MATCH(ProjektoInformacija[[#Headers],[DIZAINO SPECIALISTĖ]],Parametrai[#Headers],0))*INDEX('PROJEKTO PARAMETRAI'!$B$12:$H$12,1,MATCH(ProjektoInformacija[[#Headers],[DIZAINO SPECIALISTĖ]],Parametrai[#Headers],0))*ProjektoInformacija[[#This Row],[FAKTINĖS DARBO VALANDOS]]","v":{"v":0,"d":"0 EUR"}},{"$f":"INDEX(Parametrai[],MATCH(ProjektoInformacija[[#This Row],[PROJEKTO TIPAS]],Parametrai[PROJEKTO TIPAS],0),MATCH(ProjektoInformacija[[#Headers],[RENGINIO DARBUOTOJAI]],Parametrai[#Headers],0))*INDEX('PROJEKTO PARAMETRAI'!$B$12:$H$12,1,MATCH(ProjektoInformacija[[#Headers],[RENGINIO DARBUOTOJAI]],Parametrai[#Headers],0))*ProjektoInformacija[[#This Row],[FAKTINĖS DARBO VALANDOS]]","v":{"v":1160,"d":"1,160 EUR"}},{"$f":"INDEX(Parametrai[],MATCH(ProjektoInformacija[[#This Row],[PROJEKTO TIPAS]],Parametrai[PROJEKTO TIPAS],0),MATCH(ProjektoInformacija[[#Headers],[ADMINISTRACIJOS DARBUOTOJAI]],Parametrai[#Headers],0))*INDEX('PROJEKTO PARAMETRAI'!$B$12:$H$12,1,MATCH(ProjektoInformacija[[#Headers],[ADMINISTRACIJOS DARBUOTOJAI]],Parametrai[#Headers],0))*ProjektoInformacija[[#This Row],[FAKTINĖS DARBO VALANDOS]]","v":{"v":870,"d":"870 EUR"}}]
[null,"5 projektas","Renginio darbuotojai",{"$f":"DATE(YEAR(TODAY())+4,8,11)","v":"2026-08-11"},{"$f":"DATE(YEAR(TODAY())+4,8,21)","v":"2026-08-21"},{"$f":"DATE(YEAR(TODAY())+4,9,14)","v":"2026-09-14"},{"$f":"DATE(YEAR(TODAY())+4,9,25)","v":"2026-09-25"},250,255,{"$f":"DAYS360(ProjektoInformacija[[#This Row],[NUMATOMA PRADŽIA]],ProjektoInformacija[[#This Row],[NUMATOMA PABAIGA]],FALSE)","v":10},{"$f":"DAYS360(ProjektoInformacija[[#This Row],[FAKTINĖ PRADŽIA]],ProjektoInformacija[[#This Row],[FAKTINĖ PABAIGA]],FALSE)","v":11},{"$f":"INDEX(Parametrai[],MATCH(ProjektoInformacija[[#This Row],[PROJEKTO TIPAS]],Parametrai[PROJEKTO TIPAS],0),MATCH(ProjektoInformacija[[#Headers],[PASKYROS VADOVAS]],Parametrai[#Headers],0))*INDEX('PROJEKTO PARAMETRAI'!$B$12:$H$12,1,MATCH(ProjektoInformacija[[#Headers],[PASKYROS VADOVAS]],Parametrai[#Headers],0))*ProjektoInformacija[[#This Row],[NUMATYTOS DARBO VALANDOS]]","v":{"v":9000,"d":"9,000 EUR"}},{"$f":"INDEX(Parametrai[],MATCH(ProjektoInformacija[[#This Row],[PROJEKTO TIPAS]],Parametrai[PROJEKTO TIPAS],0),MATCH(ProjektoInformacija[[#Headers],[PROJEKTO VADOVAS]],Parametrai[#Headers],0))*INDEX('PROJEKTO PARAMETRAI'!$B$12:$H$12,1,MATCH(ProjektoInformacija[[#Headers],[PROJEKTO VADOVAS]],Parametrai[#Headers],0))*ProjektoInformacija[[#This Row],[NUMATYTOS DARBO VALANDOS]]","v":{"v":3000,"d":"3,000 EUR"}},{"$f":"INDEX(Parametrai[],MATCH(ProjektoInformacija[[#This Row],[PROJEKTO TIPAS]],Parametrai[PROJEKTO TIPAS],0),MATCH(ProjektoInformacija[[#Headers],[STRATEGIJOS VADOVAS]],Parametrai[#Headers],0))*INDEX('PROJEKTO PARAMETRAI'!$B$12:$H$12,1,MATCH(ProjektoInformacija[[#Headers],[STRATEGIJOS VADOVAS]],Parametrai[#Headers],0))*ProjektoInformacija[[#This Row],[NUMATYTOS DARBO VALANDOS]]","v":{"v":0,"d":"0 EUR"}},{"$f":"INDEX(Parametrai[],MATCH(ProjektoInformacija[[#This Row],[PROJEKTO TIPAS]],Parametrai[PROJEKTO TIPAS],0),MATCH(ProjektoInformacija[[#Headers],[DIZAINO SPECIALISTĖ]],Parametrai[#Headers],0))*INDEX('PROJEKTO PARAMETRAI'!$B$12:$H$12,1,MATCH(ProjektoInformacija[[#Headers],[DIZAINO SPECIALISTĖ]],Parametrai[#Headers],0))*ProjektoInformacija[[#This Row],[NUMATYTOS DARBO VALANDOS]]","v":{"v":0,"d":"0 EUR"}},{"$f":"INDEX(Parametrai[],MATCH(ProjektoInformacija[[#This Row],[PROJEKTO TIPAS]],Parametrai[PROJEKTO TIPAS],0),MATCH(ProjektoInformacija[[#Headers],[RENGINIO DARBUOTOJAI]],Parametrai[#Headers],0))*INDEX('PROJEKTO PARAMETRAI'!$B$12:$H$12,1,MATCH(ProjektoInformacija[[#Headers],[RENGINIO DARBUOTOJAI]],Parametrai[#Headers],0))*ProjektoInformacija[[#This Row],[NUMATYTOS DARBO VALANDOS]]","v":{"v":12000,"d":"12,000 EUR"}},{"$f":"INDEX(Parametrai[],MATCH(ProjektoInformacija[[#This Row],[PROJEKTO TIPAS]],Parametrai[PROJEKTO TIPAS],0),MATCH(ProjektoInformacija[[#Headers],[ADMINISTRACIJOS DARBUOTOJAI]],Parametrai[#Headers],0))*INDEX('PROJEKTO PARAMETRAI'!$B$12:$H$12,1,MATCH(ProjektoInformacija[[#Headers],[ADMINISTRACIJOS DARBUOTOJAI]],Parametrai[#Headers],0))*ProjektoInformacija[[#This Row],[NUMATYTOS DARBO VALANDOS]]","v":{"v":1500,"d":"1,500 EUR"}},{"$f":"INDEX(Parametrai[],MATCH(ProjektoInformacija[[#This Row],[PROJEKTO TIPAS]],Parametrai[PROJEKTO TIPAS],0),MATCH(ProjektoInformacija[[#Headers],[PASKYROS VADOVAS]],Parametrai[#Headers],0))*INDEX('PROJEKTO PARAMETRAI'!$B$12:$H$12,1,MATCH(ProjektoInformacija[[#Headers],[PASKYROS VADOVAS]],Parametrai[#Headers],0))*ProjektoInformacija[[#This Row],[FAKTINĖS DARBO VALANDOS]]","v":{"v":9180,"d":"9,180 EUR"}},{"$f":"INDEX(Parametrai[],MATCH(ProjektoInformacija[[#This Row],[PROJEKTO TIPAS]],Parametrai[PROJEKTO TIPAS],0),MATCH(ProjektoInformacija[[#Headers],[PROJEKTO VADOVAS]],Parametrai[#Headers],0))*INDEX('PROJEKTO PARAMETRAI'!$B$12:$H$12,1,MATCH(ProjektoInformacija[[#Headers],[PROJEKTO VADOVAS]],Parametrai[#Headers],0))*ProjektoInformacija[[#This Row],[FAKTINĖS DARBO VALANDOS]]","v":{"v":3060,"d":"3,060 EUR"}},{"$f":"INDEX(Parametrai[],MATCH(ProjektoInformacija[[#This Row],[PROJEKTO TIPAS]],Parametrai[PROJEKTO TIPAS],0),MATCH(ProjektoInformacija[[#Headers],[STRATEGIJOS VADOVAS]],Parametrai[#Headers],0))*INDEX('PROJEKTO PARAMETRAI'!$B$12:$H$12,1,MATCH(ProjektoInformacija[[#Headers],[STRATEGIJOS VADOVAS]],Parametrai[#Headers],0))*ProjektoInformacija[[#This Row],[FAKTINĖS DARBO VALANDOS]]","v":{"v":0,"d":"0 EUR"}},{"$f":"INDEX(Parametrai[],MATCH(ProjektoInformacija[[#This Row],[PROJEKTO TIPAS]],Parametrai[PROJEKTO TIPAS],0),MATCH(ProjektoInformacija[[#Headers],[DIZAINO SPECIALISTĖ]],Parametrai[#Headers],0))*INDEX('PROJEKTO PARAMETRAI'!$B$12:$H$12,1,MATCH(ProjektoInformacija[[#Headers],[DIZAINO SPECIALISTĖ]],Parametrai[#Headers],0))*ProjektoInformacija[[#This Row],[FAKTINĖS DARBO VALANDOS]]","v":{"v":0,"d":"0 EUR"}},{"$f":"INDEX(Parametrai[],MATCH(ProjektoInformacija[[#This Row],[PROJEKTO TIPAS]],Parametrai[PROJEKTO TIPAS],0),MATCH(ProjektoInformacija[[#Headers],[RENGINIO DARBUOTOJAI]],Parametrai[#Headers],0))*INDEX('PROJEKTO PARAMETRAI'!$B$12:$H$12,1,MATCH(ProjektoInformacija[[#Headers],[RENGINIO DARBUOTOJAI]],Parametrai[#Headers],0))*ProjektoInformacija[[#This Row],[FAKTINĖS DARBO VALANDOS]]","v":{"v":12240,"d":"12,240 EUR"}},{"$f":"INDEX(Parametrai[],MATCH(ProjektoInformacija[[#This Row],[PROJEKTO TIPAS]],Parametrai[PROJEKTO TIPAS],0),MATCH(ProjektoInformacija[[#Headers],[ADMINISTRACIJOS DARBUOTOJAI]],Parametrai[#Headers],0))*INDEX('PROJEKTO PARAMETRAI'!$B$12:$H$12,1,MATCH(ProjektoInformacija[[#Headers],[ADMINISTRACIJOS DARBUOTOJAI]],Parametrai[#Headers],0))*ProjektoInformacija[[#This Row],[FAKTINĖS DARBO VALANDOS]]","v":{"v":1530,"d":"1,530 EUR"}}]
[null,"SUMA",{"$nulls":5},{"$f":"SUBTOTAL(109,ProjektoInformacija[NUMATYTOS DARBO VALANDOS])","v":1500},{"$f":"SUBTOTAL(109,ProjektoInformacija[FAKTINĖS DARBO VALANDOS])","v":1510},{"$f":"SUBTOTAL(109,ProjektoInformacija[NUMATOMA TRUKMĖ])","v":225},{"$f":"SUBTOTAL(109,ProjektoInformacija[FAKTINĖ TRUKMĖ])","v":597}]

{"sheet":"PROJEKTO SUMOS","index":3,"n_rows":10,"n_cols":14,"rows_kept":10}
[null,{"$f":"'PROJEKTO PARAMETRAI'!B1","v":"Įmonės pavadinimas"}]
[null,"Renginio valdymo projekto stebėjimo priemonė"]
[null,{"$f":"'PROJEKTO PARAMETRAI'!B3","v":"Įmonės pavadinimas Konfidencialu"}]
["PivotTable atnaujinama automatiškai, pradedant nuo langelio dešinėje.\nINFORMACIJA\nNorėdami atnaujinti „PivotTable“ dešinėje pažymėkite ją (bet kurį „PivotTable“ langelį), tada juostelės skirtuke „PIVOTTABLE“ ĮRANKIAI | ANALIZĖ pasirinkite Atnaujinti. Arba paspauskite SHIFT + F10 pažymėję bet kurį „PivotTable“ langelį ir pasirinkite Atnaujinti.","PROJEKTO PAVADINIMAS","PASKYROS VADOVO NUMATOMA SUMA","PROJEKTO VADOVO NUMATOMA SUMA","STRATEGIJOS VADOVO NUMATOMA SUMA","DIZAINO SPECIALISTĖS NUMATOMA SUMA","RENGINIO DARBUOTOJŲ NUMATOMA SUMA","ADMINISTRAVIMO DARBUOTOJŲ NUMATOMA SUMA","PASKYROS VADOVO FAKTINĖ SUMA","PROJEKTO VADOVO FAKTINĖ SUMA","STRATEGIJOS VADOVO FAKTINĖ SUMA","DIZAINO SPECIALISTĖS FAKTINĖ SUMA","RENGINIO DARBUOTOJŲ FAKTINĖ SUMA","ADMINISTRAVIMO DARBUOTOJŲ FAKTINĖ SUMA"]
[null,"1 projektas",{"v":7200,"d":"7,200.00 EUR"},{"v":2400,"d":"2,400.00 EUR"},{"v":18000,"d":"18,000.00 EUR"},{"v":0,"d":"0.00 EUR"},{"v":0,"d":"0.00 EUR"},{"v":1200,"d":"1,200.00 EUR"},{"v":7920,"d":"7,920.00 EUR"},{"v":2640,"d":"2,640.00 EUR"},{"v":19800,"d":"19,800.00 EUR"},{"v":0,"d":"0.00 EUR"},{"v":0,"d":"0.00 EUR"},{"v":1320,"d":"1,320.00 EUR"}]
[null,"2 projektas",{"v":14400,"d":"14,400.00 EUR"},{"v":24000,"d":"24,000.00 EUR"},{"v":6000,"d":"6,000.00 EUR"},{"v":4000,"d":"4,000.00 EUR"},{"v":0,"d":"0.00 EUR"},{"v":2400,"d":"2,400.00 EUR"},{"v":14040,"d":"14,040.00 EUR"},{"v":23400,"d":"23,400.00 EUR"},{"v":5850,"d":"5,850.00 EUR"},{"v":3900,"d":"3,900.00 EUR"},{"v":0,"d":"0.00 EUR"},{"v":2340,"d":"2,340.00 EUR"}]
[null,"3 projektas",{"v":18000,"d":"18,000.00 EUR"},{"v":12000,"d":"12,000.00 EUR"},{"v":0,"d":"0.00 EUR"},{"v":25000,"d":"25,000.00 EUR"},{"v":0,"d":"0.00 EUR"},{"v":3000,"d":"3,000.00 EUR"},{"v":18000,"d":"18,000.00 EUR"},{"v":12000,"d":"12,000.00 EUR"},{"v":0,"d":"0.00 EUR"},{"v":25000,"d":"25,000.00 EUR"},{"v":0,"d":"0.00 EUR"},{"v":3000,"d":"3,000.00 EUR"}]
[null,"4 projektas",{"v":5400,"d":"5,400.00 EUR"},{"v":10800,"d":"10,800.00 EUR"},{"v":0,"d":"0.00 EUR"},{"v":0,"d":"0.00 EUR"},{"v":1200,"d":"1,200.00 EUR"},{"v":900,"d":"900.00 EUR"},{"v":5220,"d":"5,220.00 EUR"},{"v":10440,"d":"10,440.00 EUR"},{"v":0,"d":"0.00 EUR"},{"v":0,"d":"0.00 EUR"},{"v":1160,"d":"1,160.00 EUR"},{"v":870,"d":"870.00 EUR"}]
[null,"5 projektas",{"v":9000,"d":"9,000.00 EUR"},{"v":3000,"d":"3,000.00 EUR"},{"v":0,"d":"0.00 EUR"},{"v":0,"d":"0.00 EUR"},{"v":12000,"d":"12,000.00 EUR"},{"v":1500,"d":"1,500.00 EUR"},{"v":9180,"d":"9,180.00 EUR"},{"v":3060,"d":"3,060.00 EUR"},{"v":0,"d":"0.00 EUR"},{"v":0,"d":"0.00 EUR"},{"v":12240,"d":"12,240.00 EUR"},{"v":1530,"d":"1,530.00 EUR"}]
[null,"Bendroji suma",{"v":54000,"d":"54,000.00 EUR"},{"v":52200,"d":"52,200.00 EUR"},{"v":24000,"d":"24,000.00 EUR"},{"v":29000,"d":"29,000.00 EUR"},{"v":13200,"d":"13,200.00 EUR"},{"v":9000,"d":"9,000.00 EUR"},{"v":54360,"d":"54,360.00 EUR"},{"v":51540,"d":"51,540.00 EUR"},{"v":25650,"d":"25,650.00 EUR"},{"v":28900,"d":"28,900.00 EUR"},{"v":13400,"d":"13,400.00 EUR"},{"v":9060,"d":"9,060.00 EUR"}]